{"text_format":"3","workbook":"xlsx","n_sheets":2,"sheets":["ALGUS","ISIKLIK KUUEELARVE"],"read":"whole","date_system":"1900"}

{"sheet":"ALGUS","index":0,"n_rows":7,"n_cols":2,"rows_kept":7}
[null,"TEAVE SELLE MALLI KOHTA"]
[null,"Kasutage seda isiklikku kuueelarve töölehte oma prognoositud ja tegeliku kuu sissetuleku ja prognoositud ja tegelik kulu jälgimiseks."]
[null,"Sisestage vastava tabeli eri kategooriate kulud."]
[null,"Prognoositud saldo, tegelik saldo ja erinevus arvutatakse automaatselt."]
[null,"Märkus. "]
[null,"Täiendavad juhised leiate töölehe ISIKLIK KUUEELARVE veerust A. See tekst on tahtlikult peidetud. Teksti eemaldamiseks valige veerg A ja seejärel käsk KUSTUTA. Teksti kuvamiseks valige veerg A ja muutke seejärel fondi värvi."]
[null,"Töölehe tabelite kohta lisateabe saamiseks vajutage tabelis TÕSTUKLAHVI (Shift) ja seejärel klahvi F10, valige TABELI suvand ja seejärel käsk ASETEKST."]

{"sheet":"ISIKLIK KUUEELARVE","index":1,"n_rows":64,"n_cols":10,"rows_kept":64,"merged":[[3,1,5,1],[3,2,3,3],[3,6,4,8],[3,9,4,9],[4,2,4,3],[5,2,5,3],[5,6,6,8],[5,9,6,9],[7,1,9,1],[7,2,7,3],[7,6,8,8],[7,9,8,9],[8,2,8,3],[9,2,9,3],[22,6,22,9],[23,1,23,4],[31,6,31,9],[33,1,33,4],[38,6,38,9],[40,1,40,4],[44,6,44,9],[46,1,46,4],[50,6,50,9],[54,1,54,4],[57,6,57,9],[58,6,59,8],[58,9,59,9],[60,6,61,8],[60,9,61,9],[62,6,63,8],[62,9,63,9],[64,1,64,4]]}
["Selles töövihikus saate luua isikliku kuueelarve. Töölehe kasutamise kohta käivad kasulikud juhised leiate selle veeru lahtritest. Liikuge alustamiseks noolega alla."]
["Paremal olevas lahtris on selle töölehe pealkiri. Järgmised juhised on toodud lahtris A4.","ISIKLIK KUUEELARVE"]
[]
["Parempoolses lahtris on Prognoositud kuusissetulek silt. Et arvutada lahtrisse E6 kuu kuusissetulek kokku, sisestage 1. sissetulek lahtrisse E4 ja lisasissetulek lahtrisse E5. Järgmised juhised on toodud lahtris A6.","PROGNOOSITUD KUUSISSETULEK","1. sissetulek",null,{"v":4300,"d":"4,300.00 €"},null,"PROGNOOSITUD SALDO \n(Prognoositud sissetulek miinus väljaminekud)",null,null,{"$f":"E6-J59","v":{"v":3405,"d":"3,405.00 €"}}]
[null,null,"Lisasissetulek",null,{"v":300,"d":"300.00 €"}]
["Prognoositud saldo arvutatakse automaatselt lahtris J4, tegelik saldo lahtris J6 ja erinevus lahtris J8. Järgmised juhised on toodud lahtris A8.",null,"Kuusissetulek kokku",null,{"$f":"SUM(E4:E5)","v":{"v":4600,"d":"4,600.00 €"}},null,"TEGELIK SALDO \n(Tegelik sissetulek miinus väljaminekud)",null,null,{"$f":"E10-J61","v":{"v":3064,"d":"3,064.00 €"}}]
[]
["Parempoolses lahtris on tegelik kuusissetulek silt. Et arvutada lahtrisse E10 kuu kuusissetulek kokku, sisestage 1. sissetulek lahtrisse E8 ja lisasissetulek lahtrisse E9. Järgmised juhised on toodud lahtris A12.","TEGELIK KUUSISSETULEK","1. sissetulek",null,{"v":4000,"d":"4,000.00 €"},null,"ERINEVUS \n(Tegelik miinus prognoositud)",null,null,{"$f":"J6-J4","v":{"v":-341,"d":"-341.00 €"}}]
[null,null,"Lisasissetulek",null,{"v":300,"d":"300.00 €"}]
[null,null,"Kuusissetulek kokku",null,{"$f":"SUM(E8:E9)","v":{"v":4300,"d":"4,300.00 €"}}]
[]
["Sisestage üksikasjad tabelisse Eluase, mis algab parempoolses lahtris ja tabelisse Meelelahutus, mis algab lahtrist G12. Järgmised juhised on toodud lahtris A25.","ELUASE","Prognoositud kulu","Tegelik kulu","Erinevus",null,"MEELELAHUTUS","Prognoositud kulu","Tegelik kulu","Erinevus"]
[null,"Hüpoteeklaen või üür",{"v":1000,"d":"1,000.00 €"},{"v":1000,"d":"1,000.00 €"},{"$f":"Eluase[[#This Row],[Prognoositud kulu]]-Eluase[[#This Row],[Tegelik kulu]]","v":{"v":0,"d":"0.00 €"}},null,"Videod ja DVD-d",null,null,{"$f":"Meelelahutus[[#This Row],[Prognoositud kulu]]-Meelelahutus[[#This Row],[Tegelik kulu]]","v":{"v":0,"d":"0.00 €"}}]
[null,"Telefon",{"v":54,"d":"54.00 €"},{"v":100,"d":"100.00 €"},{"$f":"Eluase[[#This Row],[Prognoositud kulu]]-Eluase[[#This Row],[Tegelik kulu]]","v":{"v":-46,"d":"-46.00 €"}},null,"CD-d",null,null,{"$f":"Meelelahutus[[#This Row],[Prognoositud kulu]]-Meelelahutus[[#This Row],[Tegelik kulu]]","v":{"v":0,"d":"0.00 €"}}]
[null,"Elekter",{"v":44,"d":"44.00 €"},{"v":56,"d":"56.00 €"},{"$f":"Eluase[[#This Row],[Prognoositud kulu]]-Eluase[[#This Row],[Tegelik kulu]]","v":{"v":-12,"d":"-12.00 €"}},null,"Kino",null,null,{"$f":"Meelelahutus[[#This Row],[Prognoositud kulu]]-Meelelahutus[[#This Row],[Tegelik kulu]]","v":{"v":0,"d":"0.00 €"}}]
[null,"Gaas",{"v":22,"d":"22.00 €"},{"v":28,"d":"28.00 €"},{"$f":"Eluase[[#This Row],[Prognoositud kulu]]-Eluase[[#This Row],[Tegelik kulu]]","v":{"v":-6,"d":"-6.00 €"}},null,"Kontserdid",null,null,{"$f":"Meelelahutus[[#This Row],[Prognoositud kulu]]-Meelelahutus[[#This Row],[Tegelik kulu]]","v":{"v":0,"d":"0.00 €"}}]
[null,"Vesi- ja kanalisatsioon",{"v":8,"d":"8.00 €"},{"v":8,"d":"8.00 €"},{"$f":"Eluase[[#This Row],[Prognoositud kulu]]-Eluase[[#This Row],[Tegelik kulu]]","v":{"v":0,"d":"0.00 €"}},null,"Spordiüritused",null,null,{"$f":"Meelelahutus[[#This Row],[Prognoositud kulu]]-Meelelahutus[[#This Row],[Tegelik kulu]]","v":{"v":0,"d":"0.00 €"}}]
[null,"Kaabeltelevisioon",{"v":34,"d":"34.00 €"},{"v":34,"d":"34.00 €"},{"$f":"Eluase[[#This Row],[Prognoositud kulu]]-Eluase[[#This Row],[Tegelik kulu]]","v":{"v":0,"d":"0.00 €"}},null,"Teater",null,null,{"$f":"Meelelahutus[[#This Row],[Prognoositud kulu]]-Meelelahutus[[#This Row],[Tegelik kulu]]","v":{"v":0,"d":"0.00 €"}}]
[null,"Prügivedu",{"v":10,"d":"10.00 €"},{"v":10,"d":"10.00 €"},{"$f":"Eluase[[#This Row],[Prognoositud kulu]]-Eluase[[#This Row],[Tegelik kulu]]","v":{"v":0,"d":"0.00 €"}},null,"Muu",null,null,{"$f":"Meelelahutus[[#This Row],[Prognoositud kulu]]-Meelelahutus[[#This Row],[Tegelik kulu]]","v":{"v":0,"d":"0.00 €"}}]
[null,"Majapidamine ja remont",{"v":23,"d":"23.00 €"},{"v":0,"d":"0.00 €"},{"$f":"Eluase[[#This Row],[Prognoositud kulu]]-Eluase[[#This Row],[Tegelik kulu]]","v":{"v":23,"d":"23.00 €"}},null,"Muu",null,null,{"$f":"Meelelahutus[[#This Row],[Prognoositud kulu]]-Meelelahutus[[#This Row],[Tegelik kulu]]","v":{"v":0,"d":"0.00 €"}}]
[null,"Tarbeesemed",{"v":0,"d":"0.00 €"},{"v":0,"d":"0.00 €"},{"$f":"Eluase[[#This Row],[Prognoositud kulu]]-Eluase[[#This Row],[Tegelik kulu]]","v":{"v":0,"d":"0.00 €"}},null,"Muu",null,null,{"$f":"Meelelahutus[[#This Row],[Prognoositud kulu]]-Meelelahutus[[#This Row],[Tegelik kulu]]","v":{"v":0,"d":"0.00 €"}}]
[null,"Muu",{"v":0,"d":"0.00 €"},{"v":0,"d":"0.00 €"},{"$f":"Eluase[[#This Row],[Prognoositud kulu]]-Eluase[[#This Row],[Tegelik kulu]]","v":{"v":0,"d":"0.00 €"}},null,"Vahesumma",null,null,{"$f":"SUBTOTAL(109,Meelelahutus[Erinevus])","v":{"v":0,"d":"0.00 €"}}]
[null,"Vahesumma",null,null,{"$f":"SUBTOTAL(109,Eluase[Erinevus])","v":{"v":-41,"d":"-41.00 €"}}]
[{"$nulls":6},"LAENUD","Prognoositud kulu","Tegelik kulu","Erinevus"]
["Sisestage üksikasjad tabelisse Transport, mis algab parempoolses lahtris ja tabelisse Laenud, mis algab lahtrist G24. Järgmised juhised on toodud lahtris A35.","TRANSPORT","Prognoositud kulu","Tegelik kulu","Erinevus",null,"Isiklik laen",null,null,{"$f":"Laenud[[#This Row],[Prognoositud kulu]]-Laenud[[#This Row],[Tegelik kulu]]","v":{"v":0,"d":"0.00 €"}}]
[null,"Sõiduki makse",null,null,{"$f":"Transport[[#This Row],[Prognoositud kulu]]-Transport[[#This Row],[Tegelik kulu]]","v":{"v":0,"d":"0.00 €"}},null,"Õppelaen",null,null,{"$f":"Laenud[[#This Row],[Prognoositud kulu]]-Laenud[[#This Row],[Tegelik kulu]]","v":{"v":0,"d":"0.00 €"}}]
[null,"Bussi- ja taksosõiduraha",null,null,{"$f":"Transport[[#This Row],[Prognoositud kulu]]-Transport[[#This Row],[Tegelik kulu]]","v":{"v":0,"d":"0.00 €"}},null,"Krediitkaart",null,null,{"$f":"Laenud[[#This Row],[Prognoositud kulu]]-Laenud[[#This Row],[Tegelik kulu]]","v":{"v":0,"d":"0.00 €"}}]
[null,"Kindlustus",null,null,{"$f":"Transport[[#This Row],[Prognoositud kulu]]-Transport[[#This Row],[Tegelik kulu]]","v":{"v":0,"d":"0.00 €"}},null,"Krediitkaart",null,null,{"$f":"Laenud[[#This Row],[Prognoositud kulu]]-Laenud[[#This Row],[Tegelik kulu]]","v":{"v":0,"d":"0.00 €"}}]
[null,"Autokool",null,null,{"$f":"Transport[[#This Row],[Prognoositud kulu]]-Transport[[#This Row],[Tegelik kulu]]","v":{"v":0,"d":"0.00 €"}},null,"Krediitkaart",null,null,{"$f":"Laenud[[#This Row],[Prognoositud kulu]]-Laenud[[#This Row],[Tegelik kulu]]","v":{"v":0,"d":"0.00 €"}}]
[null,"Kütus",null,null,{"$f":"Transport[[#This Row],[Prognoositud kulu]]-Transport[[#This Row],[Tegelik kulu]]","v":{"v":0,"d":"0.00 €"}},null,"Muu",null,null,{"$f":"Laenud[[#This Row],[Prognoositud kulu]]-Laenud[[#This Row],[Tegelik kulu]]","v":{"v":0,"d":"0.00 €"}}]
[null,"Hooldus",null,null,{"$f":"Transport[[#This Row],[Prognoositud kulu]]-Transport[[#This Row],[Tegelik kulu]]","v":{"v":0,"d":"0.00 €"}},null,"Vahesumma",null,null,{"$f":"SUBTOTAL(109,Laenud[Erinevus])","v":{"v":0,"d":"0.00 €"}}]
[null,"Muu",null,null,{"$f":"Transport[[#This Row],[Prognoositud kulu]]-Transport[[#This Row],[Tegelik kulu]]","v":{"v":0,"d":"0.00 €"}}]
[null,"Vahesumma",null,null,{"$f":"SUBTOTAL(109,Transport[Erinevus])","v":{"v":0,"d":"0.00 €"}},null,"MAKSUD","Prognoositud kulu","Tegelik kulu","Erinevus"]
[{"$nulls":6},"Riiklikud maksud",null,null,{"$f":"Maksud[[#This Row],[Prognoositud kulu]]-Maksud[[#This Row],[Tegelik kulu]]","v":{"v":0,"d":"0.00 €"}}]
["Sisestage üksikasjad tabelisse Kindlustus, mis algab parempoolses lahtris ja tabelisse Maksud, mis algab lahtrist G33. Järgmised juhised on toodud lahtris A42.","KINDLUSTUS","Prognoositud kulu","Tegelik kulu","Erinevus",null,"Osariigi maksud",null,null,{"$f":"Maksud[[#This Row],[Prognoositud kulu]]-Maksud[[#This Row],[Tegelik kulu]]","v":{"v":0,"d":"0.00 €"}}]
[null,"Kodukindlustus",null,null,{"$f":"Kindlustus[[#This Row],[Prognoositud kulu]]-Kindlustus[[#This Row],[Tegelik kulu]]","v":{"v":0,"d":"0.00 €"}},null,"Kohalikud maksud",null,null,{"$f":"Maksud[[#This Row],[Prognoositud kulu]]-Maksud[[#This Row],[Tegelik kulu]]","v":{"v":0,"d":"0.00 €"}}]
[null,"Tervisekindlustus",null,null,{"$f":"Kindlustus[[#This Row],[Prognoositud kulu]]-Kindlustus[[#This Row],[Tegelik kulu]]","v":{"v":0,"d":"0.00 €"}},null,"Muu",null,null,{"$f":"Maksud[[#This Row],[Prognoositud kulu]]-Maksud[[#This Row],[Tegelik kulu]]","v":{"v":0,"d":"0.00 €"}}]
[null,"Elukindlustus",null,null,{"$f":"Kindlustus[[#This Row],[Prognoositud kulu]]-Kindlustus[[#This Row],[Tegelik kulu]]","v":{"v":0,"d":"0.00 €"}},null,"Vahesumma",null,null,{"$f":"SUBTOTAL(109,Maksud[Erinevus])","v":{"v":0,"d":"0.00 €"}}]
[null,"Muu",null,null,{"$f":"Kindlustus[[#This Row],[Prognoositud kulu]]-Kindlustus[[#This Row],[Tegelik kulu]]","v":{"v":0,"d":"0.00 €"}}]
[null,"Vahesumma",null,null,{"$f":"SUBTOTAL(109,Kindlustus[Erinevus])","v":{"v":0,"d":"0.00 €"}},null,"SÄÄSTUD VÕI INVESTEERINGUD","Prognoositud kulu","Tegelik kulu","Erinevus"]
[{"$nulls":6},"Pensionikonto",null,null,{"$f":"Säästud[[#This Row],[Prognoositud kulu]]-Säästud[[#This Row],[Tegelik kulu]]","v":{"v":0,"d":"0.00 €"}}]
["Sisestage üksikasjad tabelisse Toit, mis algab parempoolses lahtris ja tabelisse Säästud, mis algab lahtrist G40. Järgmised juhised on toodud lahtris A48.","TOIT","Prognoositud kulu","Tegelik kulu","Erinevus",null,"Investeerimiskonto",null,null,{"$f":"Säästud[[#This Row],[Prognoositud kulu]]-Säästud[[#This Row],[Tegelik kulu]]","v":{"v":0,"d":"0.00 €"}}]
[null,"Toiduained",null,null,{"$f":"Toit[[#This Row],[Prognoositud kulu]]-Toit[[#This Row],[Tegelik kulu]]","v":{"v":0,"d":"0.00 €"}},null,"Muu",null,null,{"$f":"Säästud[[#This Row],[Prognoositud kulu]]-Säästud[[#This Row],[Tegelik kulu]]","v":{"v":0,"d":"0.00 €"}}]
[null,"Väljas söömine",null,null,{"$f":"Toit[[#This Row],[Prognoositud kulu]]-Toit[[#This Row],[Tegelik kulu]]","v":{"v":0,"d":"0.00 €"}},null,"Vahesumma",null,null,{"$f":"SUBTOTAL(109,Säästud[Erinevus])","v":{"v":0,"d":"0.00 €"}}]
[null,"Muu",null,null,{"$f":"Toit[[#This Row],[Prognoositud kulu]]-Toit[[#This Row],[Tegelik kulu]]","v":{"v":0,"d":"0.00 €"}}]
[null,"Vahesumma",null,null,{"$f":"SUBTOTAL(109,Toit[Erinevus])","v":{"v":0,"d":"0.00 €"}},null,"KINGITUSED JA ANNETUSED","Prognoositud kulu","Tegelik kulu","Erinevus"]
[{"$nulls":6},"Heategevus 1",null,null,{"$f":"Kingitused[[#This Row],[Prognoositud kulu]]-Kingitused[[#This Row],[Tegelik kulu]]","v":{"v":0,"d":"0.00 €"}}]
["Sisestage üksikasjad tabelisse Lemmikloomad, mis algab parempoolses lahtris ja tabelisse Kingitused, mis algab lahtrist G46. Järgmised juhised on toodud lahtris A56.","LEMMIKLOOMAD","Prognoositud kulu","Tegelik kulu","Erinevus",null,"Heategevus 2",null,null,{"$f":"Kingitused[[#This Row],[Prognoositud kulu]]-Kingitused[[#This Row],[Tegelik kulu]]","v":{"v":0,"d":"0.00 €"}}]
[null,"Toit",null,null,{"$f":"Lemmikloomad[[#This Row],[Prognoositud kulu]]-Lemmikloomad[[#This Row],[Tegelik kulu]]","v":{"v":0,"d":"0.00 €"}},null,"Heategevus 3",null,null,{"$f":"Kingitused[[#This Row],[Prognoositud kulu]]-Kingitused[[#This Row],[Tegelik kulu]]","v":{"v":0,"d":"0.00 €"}}]
[null,"Meditsiinitarbed",null,null,{"$f":"Lemmikloomad[[#This Row],[Prognoositud kulu]]-Lemmikloomad[[#This Row],[Tegelik kulu]]","v":{"v":0,"d":"0.00 €"}},null,"Vahesumma",null,null,{"$f":"SUBTOTAL(109,Kingitused[Erinevus])","v":{"v":0,"d":"0.00 €"}}]
[null,"Hooldus",null,null,{"$f":"Lemmikloomad[[#This Row],[Prognoositud kulu]]-Lemmikloomad[[#This Row],[Tegelik kulu]]","v":{"v":0,"d":"0.00 €"}}]
[null,"Mänguasjad",null,null,{"$f":"Lemmikloomad[[#This Row],[Prognoositud kulu]]-Lemmikloomad[[#This Row],[Tegelik kulu]]","v":{"v":0,"d":"0.00 €"}},null,"JURIIDILISED KULUD","Prognoositud kulu","Tegelik kulu","Erinevus"]
[null,"Muu",null,null,{"$f":"Lemmikloomad[[#This Row],[Prognoositud kulu]]-Lemmikloomad[[#This Row],[Tegelik kulu]]","v":{"v":0,"d":"0.00 €"}},null,"Advokaaditasu",null,null,{"$f":"Juriidilised_kulud[[#This Row],[Prognoositud kulu]]-Juriidilised_kulud[[#This Row],[Tegelik kulu]]","v":{"v":0,"d":"0.00 €"}}]
[null,"Vahesumma",null,null,{"$f":"SUBTOTAL(109,Lemmikloomad[Erinevus])","v":{"v":0,"d":"0.00 €"}},null,"Alimendid",null,null,{"$f":"Juriidilised_kulud[[#This Row],[Prognoositud kulu]]-Juriidilised_kulud[[#This Row],[Tegelik kulu]]","v":{"v":0,"d":"0.00 €"}}]
[{"$nulls":6},"Kohtuotsusel põhinevad maksed",null,null,{"$f":"Juriidilised_kulud[[#This Row],[Prognoositud kulu]]-Juriidilised_kulud[[#This Row],[Tegelik kulu]]","v":{"v":0,"d":"0.00 €"}}]
["Sisestage üksikasjad tabelisse Isiklik hooldus, mis algab parempoolses lahtris ja tabelisse Juriidilised kulud, mis algab lahtrist G52. Järgmised juhised on toodud lahtris A59.","ISIKLIK HOOLDUS","Prognoositud kulu","Tegelik kulu","Erinevus",null,"Muu",null,null,{"$f":"Juriidilised_kulud[[#This Row],[Prognoositud kulu]]-Juriidilised_kulud[[#This Row],[Tegelik kulu]]","v":{"v":0,"d":"0.00 €"}}]
[null,"Meditsiinitarbed",null,null,{"$f":"Isiklik_hooldus[[#This Row],[Prognoositud kulu]]-Isiklik_hooldus[[#This Row],[Tegelik kulu]]","v":{"v":0,"d":"0.00 €"}},null,"Vahesumma",null,null,{"$f":"SUBTOTAL(109,Juriidilised_kulud[Erinevus])","v":{"v":0,"d":"0.00 €"}}]
[null,"Juuksed ja küüned",null,null,{"$f":"Isiklik_hooldus[[#This Row],[Prognoositud kulu]]-Isiklik_hooldus[[#This Row],[Tegelik kulu]]","v":{"v":0,"d":"0.00 €"}}]
["Prognoositud kulud kokku arvutatakse automaatselt lahtris J59, tegelik kulu kokku lahtris J61 ja erinevus kokku lahtris J63.","Riided",null,null,{"$f":"Isiklik_hooldus[[#This Row],[Prognoositud kulu]]-Isiklik_hooldus[[#This Row],[Tegelik kulu]]","v":{"v":0,"d":"0.00 €"}},null,"PROGNOOSITUD KULUD KOKKU",null,null,{"$f":"SUBTOTAL(109,Eluase[Prognoositud kulu],Transport[Prognoositud kulu],Kindlustus[Prognoositud kulu],Toit[Prognoositud kulu],Lemmikloomad[Prognoositud kulu],Isiklik_hooldus[Prognoositud kulu],Meelelahutus[Prognoositud kulu],Laenud[Prognoositud kulu],Maksud[Prognoositud kulu],Säästud[Prognoositud kulu],Kingitused[Prognoositud kulu],Juriidilised_kulud[Prognoositud kulu])","v":{"v":1195,"d":"1,195.00 €"}}]
[null,"Keemiline puhastus",null,null,{"$f":"Isiklik_hooldus[[#This Row],[Prognoositud kulu]]-Isiklik_hooldus[[#This Row],[Tegelik kulu]]","v":{"v":0,"d":"0.00 €"}}]
[null,"Spordiklubi",null,null,{"$f":"Isiklik_hooldus[[#This Row],[Prognoositud kulu]]-Isiklik_hooldus[[#This Row],[Tegelik kulu]]","v":{"v":0,"d":"0.00 €"}},null,"TEGELIKUD KULUD KOKKU",null,null,{"$f":"SUBTOTAL(109,Eluase[Tegelik kulu],Transport[Tegelik kulu],Kindlustus[Tegelik kulu],Toit[Tegelik kulu],Lemmikloomad[Tegelik kulu],Isiklik_hooldus[Tegelik kulu],Meelelahutus[Tegelik kulu],Laenud[Tegelik kulu],Maksud[Tegelik kulu],Säästud[Tegelik kulu],Kingitused[Tegelik kulu],Juriidilised_kulud[Tegelik kulu])","v":{"v":1236,"d":"1,236.00 €"}}]
[null,"Organisatsioonide maksed ja tasud",null,null,{"$f":"Isiklik_hooldus[[#This Row],[Prognoositud kulu]]-Isiklik_hooldus[[#This Row],[Tegelik kulu]]","v":{"v":0,"d":"0.00 €"}}]
[null,"Muu",null,null,{"$f":"Isiklik_hooldus[[#This Row],[Prognoositud kulu]]-Isiklik_hooldus[[#This Row],[Tegelik kulu]]","v":{"v":0,"d":"0.00 €"}},null,"ERINEVUS KOKKU",null,null,{"$f":"J59-J61","v":{"v":-41,"d":"-41.00 €"}}]
[null,"Vahesumma",null,null,{"$f":"SUBTOTAL(109,Isiklik_hooldus[Erinevus])","v":{"v":0,"d":"0.00 €"}}]